bitfinex/quotes_SOLUSD_20250602
["timestamp","ask_amount","ask_price","bid_price","bid_amount"]
[1748872815681,83.95078038,152.12,152.09,12.82]
[1748872815888,45.08,152.12,152.09,12.82]
[1748872817489,45.08,152.12,152.1,6.57462195]
[1748872817989,11.00497275,152.18,152.11,38.87078038]
[1748872818191,38.87078038,152.16,152.11,38.87078038]
[1748872818392,38.87078038,152.14,152.1,6.57462195]
[1748872818891,45.16,152.13,152.1,6.57462195]
[1748872819471,38.87078038,152.12,152.09,12.82]
[1748872819678,38.87078038,152.11,152.09,12.82]
[1748872819875,45.16,152.13,152.01,6.57822827]
[1748872819876,1.526,152.09,152.01,6.57822827]
[1748872820199,38.87078038,152.02,152.0,40.03154845]
[1748872820366,45.32,152.02,152.0,40.03154845]
[1748872820562,38.87078038,152.01,152.0,14.03154845]
[1748872820782,38.87078038,152.01,152.0,40.03154845]
[1748872820979,38.87078038,152.01,152.0,14.03154845]
[1748872821485,84.19078038,152.02,152.0,14.03154845]
[1748872821674,1.526,152.09,152.01,64.87078038]
[1748872821874,45.32,152.09,152.06,38.87078038]
[1748872822077,84.19078038,152.09,152.04,38.87078038]
[1748872822280,45.32,152.09,152.05,38.87078038]
[1748872822488,45.32,152.09,152.04,38.87078038]
[1748872822906,84.19078038,152.09,152.03,64.87078038]
[1748872823096,84.19078038,152.09,152.04,38.87078038]
[1748872823294,84.19078038,152.09,152.03,71.44804448]
[1748872823475,38.87078038,152.05,152.03,26.0]
[1748872823671,45.34,152.05,152.04,26.0]
[1748872823979,45.38,152.1,152.03,38.87078038]
[1748872824295,45.38,152.1,152.01,6.57847069]
[1748872824296,45.46,152.12,152.08,38.87078038]
[1748872824598,45.46,152.12,152.08,52.21078038]
[1748872824797,84.45078038,152.11,152.08,13.34]
[1748872824967,45.58,152.11,152.08,13.34]
[1748872825290,38.87078038,152.11,152.08,13.34]
[1748872825474,84.47078038,152.11,152.08,13.34]
[1748872825674,38.87078038,152.1,152.08,13.34]
[1748872825883,84.47078038,152.11,152.08,13.34]
[1748872826576,17.48827275,152.18,152.1,64.87078038]
[1748872826777,38.87078038,152.11,152.08,13.34]
[1748872827090,84.57078038,152.11,152.08,13.34]
[1748872827272,38.87078038,152.09,152.05,94.66]
[1748872827477,45.72,152.08,152.05,94.66]
[1748872827877,45.7,152.07,152.05,94.66]
[1748872828573,45.7,152.07,152.06,45.44713182]
[1748872828775,45.7,152.07,152.06,6.57635144]
[1748872828982,38.87078038,152.1,152.06,6.57635144]
[1748872829176,45.74,152.11,152.06,6.57635144]
[1748872829381,84.61078038,152.11,152.06,6.57635144]
[1748872829583,84.61078038,152.11,152.06,45.44713182]
[1748872829782,45.74,152.11,152.06,45.44713182]
[1748872829989,38.87078038,152.12,152.07,38.87078038]
[1748872830184,38.87078038,152.1,152.05,120.66]
[1748872830385,38.87078038,152.09,152.05,120.66]
[1748872830681,84.71078038,152.08,152.05,120.66]
[1748872830876,38.87078038,152.07,152.05,120.66]
[1748872831075,45.84,152.08,152.0,0.69154845]
[1748872831076,38.87078038,152.06,152.0,0.69154845]
[1748872831283,38.87078038,152.01,152.0,0.69154845]
[1748872831485,84.73078038,152.01,152.0,0.69154845]
[1748872832483,84.73078038,152.01,152.0,0.51332076]
[1748872832684,123.60156076,152.01,152.0,0.51332076]
[1748872833095,84.73078038,152.01,152.0,0.51332076]
[1748872833280,107.77735501,152.01,152.0,0.51332076]
[1748872833999,45.86,152.01,152.0,0.51332076]
[1748872834498,176.42700387,152.01,152.0,0.51332076]
[1748872834801,67.95555501,151.99,151.98,0.8918924]
[1748872835301,45.84,151.99,151.98,0.8918924]
[1748872835506,107.75735501,151.99,151.98,0.8918924]
[1748872836198,6.1156,152.06,151.98,0.8918924]
[1748872836502,90.44964886,152.05,151.98,0.8918924]
[1748872836697,61.91735501,151.99,151.98,0.8918924]
[1748872836881,107.71735501,151.99,151.98,0.8918924]
[1748872838401,176.36700387,151.99,151.98,0.8918924]
[1748872838605,176.36700387,151.99,151.84,101.2658593]
[1748872838606,18.64964886,151.94,151.84,101.2658593]
[1748872838801,61.91735501,151.87,151.84,101.2658593]
[1748872839021,61.91735501,151.86,151.82,20.63651018]
[1748872839304,45.78,151.87,151.82,0.18981941]
[1748872839509,45.78,151.87,151.75,30.33340447]
[1748872839510,61.91735501,151.83,151.76,6.5893516]
[1748872839704,45.8,151.82,151.74,9.98411149]
[1748872839913,61.91735501,151.77,151.74,3.39390774]
[1748872840119,45.82,151.77,151.74,3.39390774]
[1748872840304,107.73735501,151.77,151.74,3.39390774]
[1748872840708,45.82,151.77,151.74,3.39390774]
[1748872841003,6.3496,151.86,151.74,9.98400442]
[1748872841200,6.3496,151.86,151.76,26.0]
[1748872841201,61.91735501,151.78,151.76,26.0]
[1748872841388,107.69735501,151.77,151.76,13.86]
[1748872841587,107.71735501,151.77,151.76,13.86]
[1748872842281,107.71735501,151.77,151.74,3.39390774]
[1748872842481,45.8,151.77,151.74,3.39390774]
[1748872842686,61.91735501,151.76,151.74,3.39390774]
[1748872842888,61.91735501,151.75,151.74,3.39390774]
[1748872843915,45.8,151.77,151.74,3.39390774]
[1748872844408,6.58551214,151.85,151.74,3.39390774]
[1748872844638,61.91735501,151.79,151.75,13.86]
[1748872844789,45.9,151.84,151.75,13.86]
[1748872844991,46.14,151.92,151.82,26.0]
[1748872845183,61.91735501,151.84,151.83,13.86]
[1748872845601,61.91735501,151.85,151.83,13.86]
[1748872846100,8.4880147,151.93,151.83,13.86]
[1748872846309,61.91735501,151.87,151.83,13.86]
[1748872846515,61.91735501,151.84,151.83,13.86]
[1748872846706,61.91735501,151.84,151.76,18.64964886]
[1748872846707,52.4262,151.86,151.74,3.39390774]
[1748872846884,61.91735501,151.83,151.78,61.91735501]
[1748872847092,46.12,151.82,151.79,61.91735501]
[1748872847402,46.18,151.82,151.8,61.91735501]
[1748872847592,46.16,151.83,151.8,61.91735501]
[1748872847792,108.07735501,151.83,151.78,13.86]
[1748872848002,108.07735501,151.83,151.79,61.91735501]
[1748872848211,108.07735501,151.83,151.78,13.86]
[1748872848419,46.16,151.83,151.78,39.86]
[1748872848588,61.91735501,151.79,151.78,13.86]
[1748872848790,46.12,151.79,151.78,13.86]
[1748872849001,46.14,151.82,151.78,101.77735501]
[1748872849206,46.14,151.82,151.8,61.91735501]
[1748872849422,46.14,151.82,151.79,61.91735501]
[1748872849612,61.91735501,151.84,151.79,61.91735501]
[1748872849914,61.91735501,151.87,151.83,61.91735501]
[1748872850212,46.1,151.86,151.82,61.91735501]
[1748872850605,61.91735501,151.88,151.83,61.91735501]
[1748872850800,61.91735501,151.9,151.85,61.91735501]
[1748872851004,107.97735501,151.89,151.85,13.86]
[1748872851212,61.91735501,151.88,151.85,13.86]
[1748872851419,61.91735501,151.86,151.79,13.86]
[1748872851601,46.04,151.85,151.79,46.44783067]
[1748872851802,46.1,151.84,151.8,61.91735501]
[1748872852116,8.4880147,151.93,151.82,26.0]
[1748872852117,46.1,151.87,151.82,26.0]
[1748872852300,61.91735501,151.84,151.81,26.0]
[1748872852506,46.1,151.84,151.81,87.91735501]
[1748872852815,46.1,151.84,151.82,61.91735501]
[1748872852997,46.1,151.84,151.81,87.91735501]
[1748872853323,46.12,151.85,151.82,61.91735501]
[1748872853505,46.12,151.85,151.77,61.91735501]
[1748872853506,61.91735501,151.83,151.77,61.91735501]
[1748872853696,61.91735501,151.81,151.79,26.0]
[1748872854007,46.62,151.82,151.77,61.91735501]
[1748872854318,46.62,151.82,151.79,87.91735501]
[1748872854619,61.91735501,151.81,151.8,13.86]
[1748872855401,108.53735501,151.82,151.8,13.86]
[1748872855822,61.91735501,151.84,151.8,13.86]
[1748872856326,46.56,151.84,151.83,87.91735501]
[1748872856535,46.56,151.86,151.83,87.91735501]
[1748872856828,61.91735501,151.88,151.83,87.91735501]
[1748872857116,6.2862,151.96,151.87,61.91735501]
[1748872857317,10.0,152.03,151.92,61.91735501]
[1748872857318,46.56,151.95,151.92,61.91735501]
[1748872857504,26.0,152.02,151.91,61.91735501]
[1748872857711,6.3258,152.04,151.94,61.91735501]
[1748872857898,61.91735501,151.99,151.94,75.77735501]
[1748872858219,61.91735501,151.95,151.94,13.86]
[1748872858434,108.51735501,151.95,151.94,13.86]
[1748872859906,108.51735501,151.95,151.89,39.86]
[1748872860104,61.91735501,151.92,151.89,39.86]
[1748872860457,61.91735501,151.9,151.89,13.86]
[1748872860732,61.91735501,151.9,151.84,13.86]
[1748872860919,61.91735501,151.86,151.84,13.86]
[1748872861230,108.41735501,151.87,151.84,13.86]
[1748872861410,108.43735501,151.87,151.84,13.86]
[1748872861810,61.91735501,151.86,151.84,13.86]
[1748872862021,108.43735501,151.87,151.84,13.86]
[1748872862222,61.91735501,151.86,151.84,13.86]
[1748872862724,46.52,151.87,151.84,13.86]
[1748872862904,1.5552,151.97,151.87,26.0]
[1748872863107,1.5552,151.97,151.88,61.91735501]
[1748872863308,61.91735501,151.95,151.9,61.91735501]
[1748872863612,61.91735501,151.96,151.91,76.13735501]
[1748872863807,46.48,151.95,151.92,61.91735501]
[1748872864008,61.91735501,151.94,151.91,14.22]
[1748872864215,61.91735501,151.93,151.91,14.22]
[1748872864528,61.91735501,151.94,151.91,14.22]
[1748872864911,46.48,151.95,151.91,76.13735501]
[1748872865239,108.37735501,151.94,151.91,14.22]
[1748872865405,0.14216157,151.94,151.91,76.13735501]
[1748872865610,0.28432314,151.92,151.91,14.22]
[1748872866038,0.14216157,151.92,151.91,76.13735501]
[1748872866204,0.14216157,151.92,151.91,14.22]
[1748872866524,6.2256,152.03,151.91,76.13735501]
[1748872866733,61.91735501,152.0,151.96,61.91735501]
[1748872866927,61.91735501,152.0,151.97,14.22]
[1748872867127,8.55445741,152.06,151.97,14.22]
[1748872867449,61.91735501,152.05,152.0,61.91735501]
[1748872867612,46.44,152.05,152.02,61.91735501]
[1748872867809,46.44,152.05,152.03,14.22]
[1748872868012,46.44,152.07,152.03,76.13735501]
[1748872868230,8.12281252,152.12,152.03,14.22]
[1748872868407,61.91735501,152.07,152.03,14.22]
[1748872868608,46.42,152.07,152.03,76.13735501]
[1748872868804,61.91735501,152.08,152.04,61.91735501]
[1748872869111,61.91735501,152.06,152.03,14.22]
[1748872869316,61.91735501,152.05,152.03,14.22]
[1748872869517,0.14216157,152.04,152.03,14.22]
[1748872869715,62.20167815,152.04,152.03,14.22]
[1748872870037,62.34383972,152.04,152.03,13.9358]
[1748872870242,0.28432314,152.04,152.03,20.51344914]
[1748872870413,26.0,152.12,152.03,13.9358]
[1748872870729,62.20167815,152.04,152.03,20.51344914]
[1748872870907,0.28432314,152.04,152.03,20.51344914]
[1748872871106,26.0,152.08,152.03,20.51344914]
[1748872871107,61.91735501,152.11,152.04,18.64964886]
[1748872871417,0.28432314,152.08,152.06,6.57635144]
[1748872871618,61.91735501,152.09,152.06,6.57635144]
[1748872872035,62.34383972,152.07,152.03,13.9358]
[1748872872330,62.34383972,152.04,152.0,6.57889841]
[1748872872533,0.28432314,152.0,151.98,14.22]
[1748872872708,0.42648471,151.98,151.93,14.22]
[1748872872910,0.28432314,151.98,151.95,61.91735501]
[1748872873319,0.28432314,151.98,151.96,61.91735501]
[1748872873519,0.28432314,151.98,151.94,6.58154534]
[1748872873723,0.28432314,151.98,151.95,61.91735501]
[1748872873945,0.42648471,151.98,151.94,84.95276371]
[1748872874131,62.34383972,151.98,151.94,6.58154534]
[1748872874635,0.42648471,151.94,151.93,20.80193059]
[1748872874843,0.28432314,151.94,151.93,82.7192856]
[1748872875225,0.28432314,151.94,151.93,20.80193059]
[1748872875426,0.28432314,151.94,151.93,82.7192856]
[1748872875822,0.14216157,152.0,151.94,18.64964886]
[1748872876023,61.91735501,152.05,151.99,61.91735501]
[1748872876355,46.34,152.04,152.0,76.13735501]
[1748872876656,46.32,152.04,152.0,76.13735501]
[1748872876854,46.32,152.04,152.01,61.91735501]
[1748872877028,46.32,152.07,152.03,61.91735501]
[1748872877347,46.32,152.07,152.04,61.91735501]
[1748872877642,46.3,152.09,152.05,61.91735501]
[1748872877953,46.3,152.09,152.06,20.79635144]
[1748872878142,6.57256854,152.15,152.06,82.71370645]
[1748872878332,61.91735501,152.11,152.06,82.71370645]
[1748872878635,108.19735501,152.1,152.06,20.79635144]
[1748872878836,0.14216157,152.07,152.06,14.22]
[1748872879745,1.5043,152.17,152.06,82.71370645]
[1748872879934,1.5043,152.17,152.07,61.91735501]
[1748872879935,61.91735501,152.12,152.07,61.91735501]
[1748872880136,108.13735501,152.11,152.06,99.15458505]
[1748872880349,62.05951658,152.1,152.06,99.15458505]
[1748872880556,62.05951658,152.08,152.06,14.22]
[1748872880763,46.62648471,152.07,152.06,20.79635144]
[1748872880969,46.48432314,152.07,152.06,20.79635144]
[1748872881351,0.28432314,152.07,152.06,20.79635144]
[1748872881855,0.42648471,152.07,152.06,14.22]
[1748872882054,0.28432314,152.07,152.06,20.79635144]
[1748872882956,62.20167815,152.07,152.06,13.9358]
[1748872883150,62.34383972,152.07,152.06,13.9358]
[1748872883654,0.42648471,152.06,152.02,101.29804488]
[1748872883979,62.34383972,152.03,152.02,94.72]
[1748872884278,0.28432314,152.02,152.01,14.22]
[1748872884465,108.44383972,152.02,152.01,14.22]
[1748872885659,108.44383972,152.02,152.01,13.9358]
[1748872885883,46.52648471,152.02,151.96,76.13735501]
[1748872886040,61.91735501,152.07,152.01,61.91735501]
[1748872886380,46.08,152.06,152.03,61.91735501]
[1748872886542,46.08,152.06,152.03,14.22]
[1748872887157,46.20216157,152.05,152.03,76.13735501]
[1748872887364,46.06,152.05,152.03,76.13735501]
[1748872887552,0.28432314,152.04,152.03,82.71500415]
[1748872887757,0.28432314,152.04,152.03,20.79764914]
[1748872888075,0.28432314,152.04,152.03,14.22]
[1748872888272,46.02,152.05,152.03,20.79757699]
[1748872888580,0.14216157,152.04,152.03,82.714932]
[1748872888782,0.14216157,152.04,152.03,14.22]
[1748872888964,62.20167815,152.04,152.03,14.22]
[1748872889162,62.34383972,152.04,152.03,14.22]
[1748872890287,0.14216157,152.03,151.98,14.22]
[1748872890456,0.42648471,152.0,151.98,20.79968242]
[1748872890788,0.28432314,152.0,151.98,20.79968242]
[1748872890991,0.14216157,151.99,151.98,14.22]
[1748872891196,62.20167815,152.0,151.98,14.22]
[1748872891356,108.30383972,151.99,151.98,14.22]
[1748872891792,46.38648471,151.99,151.98,14.22]
[1748872892064,108.30383972,151.99,151.98,14.22]
[1748872893061,62.20167815,151.99,151.98,14.22]
[1748872893272,26.0,152.05,151.98,82.71716814]
[1748872893472,87.91735501,152.05,152.0,61.91735501]
[1748872893666,45.96,152.04,152.01,6.57851457]
[1748872894058,61.91735501,152.05,152.01,68.49586958]
[1748872894258,107.87735501,152.04,152.01,6.57851457]
[1748872894453,107.87735501,152.03,151.99,61.91735501]
[1748872894677,0.28432314,152.0,151.98,14.22]
[1748872894982,26.0,151.94,151.93,0.10957421]
[1748872895186,108.30383972,151.94,151.93,0.10957421]
[1748872895484,26.0,151.91,151.83,13.9]
[1748872895663,46.64648471,151.9,151.83,20.48617567]
[1748872895869,46.22,151.89,151.88,61.91735501]
[1748872896176,46.22,151.92,151.88,61.91735501]
[1748872896386,46.22,151.92,151.9,61.91735501]
[1748872896695,46.48432314,151.93,151.91,61.91735501]
[1748872897201,6.1005,152.03,151.92,61.91735501]
[1748872897484,6.1005,152.03,151.94,61.91735501]
[1748872897671,0.14216157,151.98,151.95,13.9]
[1748872897988,61.91735501,151.96,151.95,13.9]
[1748872898283,0.42648471,151.96,151.95,13.9]
[1748872898795,46.16,151.99,151.95,82.39846721]
[1748872898968,46.16,152.0,151.98,61.91735501]
[1748872899171,46.14,152.0,151.97,61.91735501]
[1748872899371,61.91735501,152.02,151.97,61.91735501]
[1748872899587,46.12,152.01,151.97,61.91735501]
[1748872899760,46.12,152.01,151.97,68.49754127]
[1748872899961,46.12,152.01,151.97,61.91735501]
[1748872900179,46.12,152.01,151.97,68.49757671]
[1748872900369,0.14216157,152.0,151.97,68.49757671]
[1748872900690,61.91735501,152.06,151.99,61.91735501]
[1748872900891,0.28432314,152.02,151.99,61.91735501]
[1748872901087,61.91735501,152.04,152.0,61.91735501]
[1748872901279,46.06,152.03,152.0,61.91735501]
[1748872901998,46.02,152.03,152.01,61.91735501]
[1748872902195,0.28432314,152.02,151.99,61.91735501]
[1748872902394,0.28432314,152.02,151.98,68.49682357]
[1748872902602,46.02,152.03,152.0,61.91735501]
[1748872902765,0.28432314,152.02,152.01,13.9]
[1748872903388,62.34383972,152.02,152.01,13.9]
[1748872903693,0.28432314,152.02,151.97,61.91735501]
[1748872903859,46.02,152.03,152.0,61.91735501]
[1748872904065,46.0,152.02,152.0,61.91735501]
[1748872904264,62.05951658,152.04,152.0,61.91735501]
[1748872904464,0.14216157,152.01,151.99,6.57938022]
[1748872904665,0.14216157,152.01,151.99,68.49673523]
[1748872904878,46.0,152.02,151.99,68.49673523]
[1748872905077,46.0,152.02,152.0,61.91735501]
[1748872905282,46.0,152.02,151.99,23.02783077]
[1748872905566,0.14216157,152.03,152.0,61.91735501]
[1748872905791,6.57375755,152.12,152.03,23.02177201]
[1748872905989,61.91735501,152.07,152.04,13.9]
[1748872906194,45.98,152.06,152.04,13.9]
[1748872906383,61.91735501,152.07,152.04,13.9]
[1748872906571,12.57853989,152.13,152.04,75.81735501]
[1748872906896,107.87735501,152.12,152.08,61.91735501]
[1748872907105,0.28432314,152.11,152.07,61.91735501]
[1748872907587,61.91735501,152.14,152.09,61.91735501]
[1748872907768,45.96,152.13,152.1,20.47443756]
[1748872907964,45.96,152.12,152.1,13.9]
[1748872908473,45.94,152.11,152.1,75.81735501]
[1748872908677,45.94,152.11,152.1,13.9]
[1748872908678,61.91735501,152.11,152.1,13.9]
[1748872908977,0.28432314,152.11,152.1,13.9]
[1748872909180,0.14216157,152.11,152.1,13.9]
[1748872909379,82.8492242,152.22,152.1,13.9]
[1748872909380,45.88,152.14,152.1,75.81735501]
[1748872909581,61.91735501,152.15,152.1,75.81735501]
[1748872909779,0.28432314,152.12,152.1,13.9]
[1748872909972,45.88,152.13,152.1,82.39197696]
[1748872910307,45.9,152.15,152.12,61.91735501]
[1748872910481,6.56943896,152.22,152.13,61.91735501]
[1748872910800,6.56943896,152.22,152.1,36.91117684]
[1748872910801,6.56909077,152.23,152.16,61.91735501]
[1748872911106,61.91735501,152.24,152.19,61.91735501]
[1748872911274,107.81735501,152.23,152.2,13.9]
[1748872911476,61.91735501,152.23,152.2,13.9]
[1748872911710,45.9,152.24,152.21,61.91735501]
[1748872911907,45.86,152.24,152.22,61.91735501]
[1748872912777,45.86,152.24,152.21,61.91735501]
[1748872912973,45.8,152.24,152.21,61.91735501]
[1748872913189,45.8,152.24,152.23,61.91735501]
[1748872913391,45.78,152.25,152.23,61.91735501]
[1748872913705,6.56469506,152.33,152.24,61.91735501]
[1748872913876,6.56469506,152.33,152.2,55.54560744]
[1748872913877,45.8,152.32,152.25,68.4854995]
[1748872914078,61.91735501,152.29,152.26,13.88]
[1748872914317,45.82,152.28,152.26,13.88]
[1748872914603,107.73735501,152.28,152.26,13.88]
[1748872914797,45.82,152.28,152.26,13.88]
[1748872914994,61.91735501,152.27,152.26,13.88]
[1748872915309,62.34383972,152.27,152.26,13.88]
[1748872915517,0.42648471,152.26,152.21,13.88]
[1748872915801,62.34383972,152.22,152.21,13.88]
[1748872916005,108.12383972,152.22,152.21,13.88]
[1748872916480,0.42648471,152.21,152.16,13.88]
[1748872916676,0.28432314,152.17,152.16,13.88]
[1748872916996,108.14383972,152.17,152.16,13.88]
[1748872917212,46.08432314,152.17,152.16,13.88]
[1748872917375,108.14383972,152.17,152.16,13.88]
[1748872917697,46.22648471,152.17,152.16,13.88]
[1748872918008,114.71543727,152.17,152.11,94.75393438]
[1748872918211,0.28432314,152.12,152.11,94.75393438]
[1748872918413,0.28432314,152.12,152.11,101.32812411]
[1748872918624,45.9,152.14,152.11,101.32812411]
[1748872918923,45.9,152.14,152.11,163.24547912]
[1748872919128,45.96,152.16,152.12,61.91735501]
[1748872919296,45.94,152.16,152.13,61.91735501]
[1748872919708,0.14216157,152.17,152.14,61.91735501]
[1748872919913,61.91735501,152.2,152.15,68.48981639]
[1748872920132,16.41891976,152.27,152.16,13.88]
[1748872920133,61.91735501,152.22,152.16,13.88]
[1748872920425,62.34383972,152.17,152.16,13.88]
[1748872920606,108.26383972,152.17,152.16,13.88]
[1748872920805,46.32648471,152.17,152.16,13.88]
[1748872920992,0.28432314,152.16,152.11,108.63393438]
[1748872921197,0.14216157,152.15,152.11,115.20803838]
[1748872921409,45.92,152.14,152.11,115.20803838]
[1748872921917,45.92,152.14,152.11,177.12539339]
[1748872922106,45.92,152.14,152.11,115.20803838]
[1748872922433,62.34383972,152.13,152.11,108.63393438]
[1748872922603,62.20167815,152.12,152.11,0.05393438]
[1748872923006,0.42648471,152.11,152.06,13.86]
[1748872923306,62.34383972,152.07,152.06,13.86]
[1748872923520,108.34383972,152.07,152.06,13.86]
[1748872924007,114.9197587,152.07,152.06,13.86]
[1748872924208,0.42648471,152.06,152.01,13.86]
[1748872924397,0.28432314,152.02,152.01,13.86]
[1748872924601,0.14216157,152.02,152.01,13.86]
[1748872925098,46.0,152.03,152.01,13.86]
[1748872925293,16.43314326,152.14,152.02,61.91735501]
[1748872925492,6.57246138,152.15,152.04,61.91735501]
[1748872925493,0.42648471,152.1,152.04,61.91735501]
[1748872925711,13.00933078,152.16,152.09,61.91735501]
[1748872925911,61.91735501,152.16,152.11,68.49148617]
[1748872926106,46.0,152.15,152.12,75.77735501]
[1748872926308,61.91735501,152.14,152.12,13.86]
[1748872926521,61.91735501,152.13,152.12,13.86]
[1748872926829,62.34383972,152.13,152.12,13.86]
[1748872926996,46.0,152.15,152.12,13.86]
[1748872927208,107.91735501,152.15,152.12,13.86]
[1748872927400,62.05951658,152.14,152.12,13.86]
[1748872927605,61.91735501,152.13,152.12,13.86]
[1748872927908,62.34383972,152.13,152.12,13.86]
[1748872928107,0.28432314,152.13,152.12,13.86]
[1748872928318,32.57130146,152.18,152.12,13.86]
[1748872928501,61.91735501,152.15,152.12,13.86]
[1748872928699,1.5489,152.22,152.13,61.91735501]
[1748872928914,8.11847638,152.22,152.15,61.91735501]
[1748872929132,61.91735501,152.2,152.12,36.86809635]
[1748872929423,61.91735501,152.16,152.12,20.43370246]
[1748872929602,61.91735501,152.14,152.12,13.86]
[1748872929804,0.14216157,152.14,152.12,13.86]
[1748872930002,0.28432314,152.16,152.12,82.35105992]
[1748872930227,0.28432314,152.16,152.12,20.43370491]
[1748872930525,22.72659818,152.25,152.15,61.91735501]
[1748872930699,22.72659818,152.25,152.12,36.8680988]
[1748872930700,61.91735501,152.22,152.17,61.91735501]
[1748872930899,23.03610363,152.31,152.2,61.91735501]
[1748872931230,52.56598818,152.3,152.22,61.91735501]
[1748872931401,6.5654669,152.32,152.23,61.91735501]
[1748872931728,61.91735501,152.3,152.25,61.91735501]
[1748872931916,0.28432314,152.27,152.24,13.86]
[1748872932115,61.91735501,152.29,152.24,82.3459011]
[1748872932414,6.56311517,152.37,152.28,61.91735501]
[1748872932615,61.91735501,152.33,152.29,61.91735501]
[1748872932818,14.72349018,152.42,152.31,61.91735501]
[1748872933023,61.91735501,152.34,152.3,13.86]
[1748872933229,61.91735501,152.33,152.3,13.86]
[1748872933608,46.04,152.34,152.3,13.86]
[1748872933813,107.95735501,152.34,152.3,13.86]
[1748872934011,61.91735501,152.36,152.32,6.56512605]
[1748872934419,107.93735501,152.36,152.32,68.48248106]
[1748872934742,61.91735501,152.33,152.3,13.86]
[1748872934940,62.34383972,152.31,152.3,13.86]
[1748872935525,0.42648471,152.31,152.3,13.86]
[1748872936037,62.34383972,152.31,152.3,13.86]
[1748872936435,0.42648471,152.31,152.3,13.86]
[1748872936636,62.34383972,152.31,152.3,13.86]
[1748872936928,0.14216157,152.31,152.3,13.86]
[1748872937133,6.56372636,152.36,152.3,13.86]
[1748872937335,46.0,152.35,152.31,61.91735501]
[1748872937533,0.14216157,152.34,152.31,61.91735501]
[1748872937732,22.89487241,152.42,152.32,61.91735501]
[1748872937733,61.91735501,152.37,152.32,61.91735501]
[1748872938042,61.91735501,152.34,152.3,20.42598818]
[1748872938254,0.42648471,152.33,152.3,20.42598818]
[1748872938427,0.42648471,152.31,152.3,13.86]
[1748872938824,0.42648471,152.31,152.25,61.91735501]
[1748872938825,62.34383972,152.31,152.25,61.91735501]
[1748872939143,62.34383972,152.31,152.24,6.56857593]
[1748872939144,62.34383972,152.29,152.24,68.48593094]
[1748872939942,62.05951658,152.26,152.24,6.56857593]
[1748872940139,0.14216157,152.26,152.24,68.48593094]
[1748872940322,0.42648471,152.28,152.24,68.48593094]
[1748872940527,0.42648471,152.28,152.25,61.91735501]
[1748872940741,0.28432314,152.28,152.24,6.56857593]
[1748872940948,0.14216157,152.26,152.24,6.56857593]
[1748872941150,0.28432314,152.27,152.24,68.48593094]
[1748872941351,0.14216157,152.27,152.24,68.48593094]
[1748872941554,62.05951658,152.27,152.24,6.56857593]
[1748872941771,0.14216157,152.27,152.24,6.56857593]
[1748872942148,0.14216157,152.27,152.24,68.48593094]
[1748872942560,0.28432314,152.33,152.26,61.91735501]
[1748872942768,0.28432314,152.29,152.26,61.91735501]
[1748872942971,0.28432314,152.29,152.24,22.99001576]
[1748872943358,0.42648471,152.29,152.25,61.91735501]
[1748872943875,32.56340246,152.36,152.28,61.91735501]
[1748872944173,1.5161,152.39,152.32,61.91735501]
[1748872944339,45.98,152.38,152.31,61.91735501]
[1748872944545,61.91735501,152.34,152.3,6.56598818]
[1748872944745,62.05951658,152.33,152.3,6.56598818]
[1748872944957,62.05951658,152.31,152.29,20.42629426]
[1748872945152,62.05951658,152.31,152.29,13.86]
[1748872945359,61.91735501,152.31,152.29,13.86]
[1748872945552,0.28432314,152.31,152.29,13.86]
[1748872945752,0.14216157,152.31,152.29,82.34373256]
[1748872946252,26.0,152.38,152.3,61.91735501]
[1748872946453,26.0,152.38,152.31,61.91735501]
[1748872946656,45.92,152.37,152.31,61.91735501]
[1748872946858,61.91735501,152.35,152.3,61.91735501]
[1748872947376,6.4922,152.42,152.34,61.91735501]
[1748872947551,61.91735501,152.39,152.35,75.77735501]
[1748872947752,1.5188,152.44,152.37,61.91735501]
[1748872948065,45.9,152.43,152.41,68.47860427]
[1748872948272,45.9,152.44,152.41,82.33860427]
[1748872948665,45.9,152.44,152.42,61.91735501]
[1748872948978,45.9,152.44,152.41,82.33860427]